bitfinex-derivatives/quotes_SOLF0:USTF0_20250720
["timestamp","ask_amount","ask_price","bid_price","bid_amount"]
[1752980323851,7.50441486,177.59,177.56,3.31]
[1752980324354,5.6275,177.61,177.56,3.31]
[1752980324554,1.87641486,177.63,177.56,3.31]
[1752980324754,1.87641486,177.66,177.58,3.31]
[1752980325156,7.50211486,177.66,177.62,3.31]
[1752980325450,1.87641486,177.66,177.62,3.31]
[1752980325655,5.6254,177.67,177.62,3.31]
[1752980326054,5.6254,177.67,177.63,5.6264]
[1752980326356,5.6254,177.67,177.64,3.31]
[1752980326657,1.01,177.65,177.59,3.31]
[1752980326856,2.88641486,177.64,177.59,3.31]
[1752980327756,7.50291486,177.64,177.6,5.6275]
[1752980327954,7.50291486,177.64,177.61,3.31]
[1752980330359,5.6265,177.64,177.61,3.31]
[1752980331661,5.6266,177.63,177.61,3.31]
[1752980333964,5.6266,177.63,177.62,3.14]
[1752980335966,5.6263,177.64,177.62,3.14]
[1752980337766,6.6363,177.64,177.63,3.14]
[1752980337967,1.01,177.63,177.6,3.14]
[1752980338165,1.01,177.61,177.6,3.14]
[1752980338970,6.6372,177.61,177.6,3.14]
[1752980339172,1.87641486,177.62,177.56,238.02524865]
[1752980339173,1.01,177.6,177.57,3.14]
[1752980339770,5.6276,177.6,177.57,3.14]
[1752980339970,5.6276,177.6,177.57,5.6285]
[1752980340172,5.6272,177.62,177.58,3.14]
[1752980340376,2.88641486,177.63,177.58,3.14]
[1752980341270,9.24986828,177.71,177.59,3.14]
[1752980341271,1.87641486,177.66,177.59,3.14]
[1752980341471,5.6259,177.66,177.61,3.14]
[1752980341774,1.01,177.68,177.63,5.6265]
[1752980341974,5.6254,177.67,177.64,3.14]
[1752980342174,1.01,177.68,177.64,3.14]
[1752980342367,2.88641486,177.69,177.64,3.14]
[1752980342565,1.01,177.68,177.64,3.14]
[1752980343377,2.88641486,177.67,177.64,3.14]
[1752980343680,2.88641486,177.67,177.65,3.14]
[1752980344479,5.6257,177.66,177.65,3.14]
[1752980344879,1.01,177.66,177.57,102.84]
[1752980345179,2.88641486,177.64,177.63,3.14]
[1752980345371,8.51301486,177.64,177.63,3.14]
[1752980345674,7.50301486,177.64,177.63,3.14]
[1752980349175,5.6268,177.63,177.59,5.6277]
[1752980349380,6.6368,177.63,177.61,3.14]
[1752980349577,6.6368,177.63,177.62,3.14]
[1752980349787,5.6268,177.63,177.62,3.14]
[1752980353384,6.6368,177.63,177.62,3.14]
[1752980355183,5.6268,177.63,177.62,3.14]
[1752980362391,5.6263,177.64,177.62,3.14]
[1752980362594,1.87641486,177.67,177.62,3.14]
[1752980362983,5.6258,177.66,177.63,3.19]
[1752980363391,1.87641486,177.67,177.63,3.19]
[1752980363792,5.6263,177.64,177.63,3.19]
[1752980371799,6.6263,177.64,177.63,3.19]
[1752980372298,5.6273,177.61,177.58,10.34380902]
[1752980372498,2.87641486,177.63,177.57,107.55570902]
[1752980372796,1.87641486,177.63,177.57,107.55570902]
[1752980373000,1.87641486,177.63,177.58,3.19]
[1752980373701,1.0,177.64,177.58,3.19]
[1752980373902,5.6271,177.62,177.59,5.6278]
[1752980374105,5.6271,177.62,177.6,3.19]
[1752980383713,5.6267,177.63,177.61,3.19]
[1752980387416,5.6264,177.64,177.62,3.19]
[1752980388012,5.6266,177.63,177.62,3.19]
[1752980394018,6.6366,177.63,177.62,3.19]
[1752980396720,5.6266,177.63,177.62,3.19]
[1752980397714,5.6264,177.64,177.62,3.19]
[1752980397916,2.88641486,177.65,177.62,3.19]
[1752980398321,1.87641486,177.65,177.62,3.19]
[1752980398520,5.6265,177.64,177.62,3.19]
[1752980399016,1.20498642,177.63,177.62,3.19]
[1752980400522,6.83158642,177.63,177.62,3.19]
[1752980402324,1.20498642,177.63,177.62,3.19]
[1752980403421,1.20498642,177.65,177.63,5.6266]
[1752980403726,1.20498642,177.65,177.64,3.15]
[1752980404027,1.01,177.64,177.57,3.15]
[1752980404221,1.20498642,177.6,177.57,3.15]
[1752980404420,1.20498642,177.63,177.58,3.15]
[1752980405224,1.20498642,177.63,177.62,3.15]
[1752980407429,5.6264,177.64,177.62,3.15]
[1752980407630,1.01,177.67,177.62,3.15]
[1752980407830,1.20498642,177.66,177.62,3.15]
[1752980408534,6.83078642,177.66,177.62,8.7767]
[1752980408731,6.83078642,177.66,177.63,3.15]
[1752980409026,1.20498642,177.66,177.63,3.15]
[1752980409633,6.83068642,177.66,177.63,3.15]
[1752980409828,6.83068642,177.66,177.64,3.15]
[1752980410233,1.20498642,177.66,177.64,3.15]
[1752980410931,6.6368,177.63,177.59,3.15]
[1752980411131,7.84178642,177.63,177.59,3.15]
[1752980411432,7.84178642,177.63,177.59,8.7776]
[1752980411631,7.84178642,177.63,177.6,3.15]
[1752980411832,1.20498642,177.62,177.6,3.15]
[1752980412030,6.6364,177.64,177.6,5.6275]
[1752980412325,1.20498642,177.62,177.61,3.15]
[1752980413036,8.5193903,177.64,177.61,3.15]
[1752980414136,5.6264,177.64,177.62,3.15]
[1752980416537,6.6364,177.64,177.62,3.15]
[1752980418438,1.01,177.63,177.61,3.15]
[1752980418637,1.01,177.61,177.59,3.15]
[1752980418946,6.6378,177.59,177.58,3.15]
[1752980419144,8.5207903,177.59,177.58,3.15]
[1752980419841,8.5207903,177.59,177.54,108.3893]
[1752980419842,5.6286,177.57,177.56,3.15]
[1752980420043,8.5215903,177.57,177.56,3.15]
[1752980421142,5.629,177.56,177.55,3.17]
[1752980421344,6.639,177.56,177.55,3.17]
[1752980421641,7.5115903,177.57,177.55,3.17]
[1752980422243,5.6288,177.56,177.55,3.17]
[1752980422744,6.6388,177.56,177.55,3.17]
[1752980423440,1.8829903,177.57,177.55,3.17]
[1752980425749,7.5116903,177.57,177.55,3.17]
[1752980425945,8.5216903,177.57,177.55,3.17]
[1752980426145,1.8829903,177.57,177.51,3.17]
[1752980426344,8.5222903,177.55,177.52,3.17]
[1752980426649,2.8929903,177.55,177.52,3.17]
[1752980427143,1.8829903,177.55,177.52,8.8]
[1752980427340,1.8829903,177.55,177.53,3.17]
[1752980427844,7.5116903,177.57,177.53,3.17]
[1752980428849,7.5116903,177.57,177.53,8.7997]
[1752980429049,7.5116903,177.57,177.54,3.17]
[1752980430045,1.8829903,177.6,177.55,3.17]
[1752980430651,2.8929903,177.62,177.55,3.17]
[1752980430843,1.8829903,177.62,177.55,3.17]
[1752980431644,2.8929903,177.66,177.58,3.17]
[1752980431846,2.8929903,177.66,177.59,3.17]
[1752980432750,1.01,177.63,177.59,3.17]
[1752980433352,1.01,177.61,177.6,3.17]
[1752980433553,1.8829903,177.62,177.6,3.17]
[1752980433853,2.8929903,177.62,177.6,3.17]
[1752980434043,2.8929903,177.62,177.58,105.93]
[1752980434044,1.01,177.61,177.58,105.93]
[1752980434248,1.01,177.59,177.58,3.17]
[1752980434849,1.01,177.59,177.54,3.17]
[1752980435148,1.8829903,177.6,177.54,3.17]
[1752980435149,2.8929903,177.58,177.54,3.17]
[1752980435346,5.6285,177.57,177.54,3.17]
[1752980435546,6.6385,177.57,177.54,3.17]
[1752980435951,5.6288,177.56,177.54,3.17]
[1752980437054,5.6286,177.57,177.54,3.17]
[1752980438247,1.8829903,177.61,177.55,3.17]
[1752980438950,5.6276,177.6,177.56,3.17]
[1752980440048,5.6276,177.6,177.57,3.17]
[1752980440356,1.8829903,177.62,177.57,3.17]
[1752980440553,1.8829903,177.6,177.53,104.6429903]
[1752980440749,5.6278,177.59,177.58,3.17]
[1752980441453,5.6276,177.6,177.58,3.17]
[1752980441952,1.01,177.65,177.58,3.17]
[1752980442152,1.8829903,177.64,177.58,3.17]
[1752980442353,5.6272,177.61,177.58,3.17]
[1752980443354,5.6268,177.63,177.58,3.17]
[1752980443550,1.8829903,177.64,177.6,3.17]
[1752980444159,5.6268,177.63,177.6,3.17]
[1752980445256,5.6269,177.62,177.6,3.17]
[1752980446658,5.6265,177.64,177.6,3.17]
[1752980446867,1.8829903,177.66,177.61,5.6272]
[1752980447163,2.8929903,177.66,177.62,3.17]
[1752980447563,5.6266,177.64,177.62,3.17]
[1752980449961,395.2272,177.77,177.61,5.6272]
[1752980449962,5.6255,177.67,177.64,3.17]
[1752980450569,5.6251,177.68,177.65,3.11]
[1752980451061,5.6251,177.68,177.65,8.7359]
[1752980451365,5.6251,177.68,177.66,3.11]
[1752980452867,5.6253,177.67,177.66,3.11]
[1752980455163,5.6251,177.68,177.66,3.11]
[1752980459471,6.6251,177.68,177.66,3.11]
[1752980460067,5.6251,177.68,177.66,3.11]
[1752980460568,5.6253,177.67,177.66,3.11]
[1752980460766,1.8829903,177.69,177.63,5.6265]
[1752980460962,6.6252,177.68,177.67,3.11]
[1752980462069,8.5077903,177.69,177.64,5.6261]
[1752980462274,8.5077903,177.69,177.68,3.11]
[1752980465883,1.01,177.68,177.67,3.11]
[1752980466681,1.8829903,177.69,177.67,3.11]
[1752980466882,2.8929903,177.69,177.62,3.11]
[1752980467481,5.6252,177.68,177.64,5.6262]
[1752980467683,6.6352,177.68,177.65,3.11]
[1752980469182,5.6253,177.67,177.65,3.11]
[1752980469581,1.8829903,177.67,177.64,3.11]
[1752980469784,5.6264,177.64,177.57,3.11]
[1752980469987,2.8929903,177.65,177.57,3.11]
[1752980470287,7.5097903,177.63,177.6,3.11]
[1752980470984,5.627,177.62,177.6,3.11]
[1752980473475,8.5196903,177.63,177.6,3.11]
[1752980473679,1.8829903,177.63,177.6,3.11]
[1752980475078,1.8829903,177.63,177.6,8.7373]
[1752980475283,1.8829903,177.63,177.61,3.11]
[1752980475683,2.8929903,177.63,177.62,3.11]
[1752980476282,1.8829903,177.63,177.62,3.11]
[1752980477687,7.5095903,177.63,177.62,3.11]
[1752980478284,8.5195903,177.63,177.62,3.11]
[1752980479593,1.01,177.6,177.57,3.11]
[1752980479787,2.8929903,177.6,177.57,3.11]
[1752980479984,2.8929903,177.6,177.57,8.7382]
[1752980480286,2.8929903,177.6,177.58,3.11]
[1752980480486,1.8829903,177.6,177.58,3.11]
[1752980480981,1.8829903,177.6,177.59,3.29]
[1752980483487,1.01,177.67,177.59,3.29]
[1752980483686,2.8929903,177.67,177.59,3.29]
[1752980484088,8.5183903,177.67,177.63,5.6264]
[1752980484284,2.8929903,177.67,177.64,3.29]
[1752980484592,7.5082903,177.67,177.64,8.9162]
[1752980484789,7.5082903,177.67,177.65,3.29]
[1752980484989,1.01,177.69,177.65,3.29]
[1752980484990,2.8929903,177.69,177.65,3.29]
[1752980485293,7.5078903,177.69,177.66,3.29]
[1752980486987,2.8929903,177.71,177.66,3.29]
[1752980487492,2.86273382,177.75,177.68,3.29]
[1752980487493,1.8829903,177.72,177.68,3.29]
[1752980487687,2.8929903,177.72,177.68,3.29]
[1752980487887,1.01,177.71,177.68,3.29]
[1752980488094,5.6244,177.7,177.68,3.29]
[1752980493098,5.6247,177.69,177.68,3.29]
[1752980493693,6.6347,177.69,177.68,3.29]
[1752980494090,1.8829903,177.7,177.65,3.29]
[1752980494294,1.01,177.67,177.61,3.29]
[1752980494690,1.01,177.67,177.59,4.72771191]
[1752980494691,1.8829903,177.66,177.62,3.29]
[1752980494890,1.01,177.65,177.62,3.29]
[1752980495094,1.01,177.64,177.63,3.29]
[1752980495299,2.8929903,177.64,177.57,3.29]
[1752980496900,2.8929903,177.66,177.61,3.29]
[1752980497798,6.16657885,177.71,177.58,3.29]
[1752980497999,1.01,177.71,177.63,3.29]
[1752980498194,2.8929903,177.71,177.63,3.29]
[1752980498600,1.8829903,177.71,177.62,1.8829903]
[1752980498800,2.8929903,177.71,177.63,3.29]
[1752980499202,1.01,177.74,177.66,3.29]
[1752980499403,2.8929903,177.74,177.66,3.29]
[1752980499998,5.6237,177.73,177.68,5.625]
[1752980500199,1.01,177.73,177.69,3.29]
[1752980500714,1.8829903,177.74,177.69,3.29]
[1752980500912,1.01,177.72,177.69,3.29]
[1752980501718,6.6337,177.72,177.69,3.29]
[1752980503618,5.6244,177.7,177.66,5.6256]
[1752980503819,1.01,177.7,177.67,3.29]
[1752980505421,1.8829903,177.7,177.61,1.8829903]
[1752980505613,1.01,177.68,177.67,3.29]
[1752980506818,6.635,177.68,177.67,3.29]
[1752980507717,1.01,177.67,177.62,3.29]
[1752980507914,1.01,177.65,177.62,3.29]
[1752980508119,1.01,177.64,177.6,3.29]
[1752980508313,6.6363,177.64,177.6,5.6273]
[1752980508618,6.6363,177.64,177.61,3.29]
[1752980509117,7.5090903,177.65,177.62,3.29]
[1752980509318,1.8829903,177.65,177.62,3.29]
[1752980509625,2.8929903,177.65,177.62,3.29]
[1752980510623,1.8829903,177.65,177.62,3.29]
[1752980511019,7.5089903,177.65,177.62,3.29]
[1752980511825,5.6263,177.64,177.61,3.26]
[1752980512025,6.6263,177.64,177.61,3.26]
[1752980512227,6.6263,177.64,177.6,5.6274]
[1752980512228,1.8829903,177.65,177.59,103.38]
[1752980512527,8.5095903,177.63,177.62,3.26]
[1752980513427,5.6273,177.61,177.6,3.26]
[1752980513924,6.627,177.62,177.59,103.38]
[1752980514125,1.8829903,177.63,177.61,3.26]
[1752980514325,2.8829903,177.63,177.61,3.26]
[1752980514525,5.6269,177.62,177.59,109.0076]
[1752980515020,5.6269,177.62,177.6,3.26]
[1752980515333,8.5095903,177.63,177.6,3.26]
[1752980515627,1.0,177.65,177.61,3.26]
[1752980515822,1.8829903,177.64,177.61,3.26]
[1752980516219,1.0,177.66,177.6,3.26]
[1752980516525,2.8829903,177.66,177.6,3.26]
[1752980516826,1.8829903,177.66,177.6,3.26]
[1752980517026,7.5086903,177.66,177.62,5.6267]
[1752980517226,7.5086903,177.66,177.63,3.26]
[1752980519121,5.626,177.65,177.64,3.26]
[1752980520031,5.6257,177.66,177.64,3.26]
[1752980520326,1.8829903,177.66,177.64,3.26]
[1752980520524,1.8829903,177.66,177.62,3.26]
[1752980520525,5.6261,177.65,177.62,3.26]
[1752980520718,6.6261,177.65,177.62,3.26]
[1752980521524,1.8829903,177.64,177.63,3.26]
[1752980521720,1.0,177.63,177.61,3.26]
[1752980522126,1.0,177.63,177.6,5.6274]
[1752980522428,1.0,177.62,177.61,3.26]
[1752980522628,2.8829903,177.62,177.61,3.26]
[1752980522828,1.0,177.61,177.6,3.26]
[1752980523227,6.16657885,177.68,177.59,103.38]
[1752980523228,1.8829903,177.64,177.62,3.26]
[1752980523428,5.6266,177.63,177.62,3.26]
[1752980528835,5.6275,177.61,177.6,3.26]
[1752980529130,1.8829903,177.62,177.6,3.26]
[1752980529934,1.8829903,177.64,177.6,3.26]
[1752980530139,2.8829903,177.66,177.6,3.26]
[1752980530638,1.8829903,177.66,177.63,3.26]
[1752980531339,7.5086903,177.66,177.64,3.26]
[1752980531640,1.8829903,177.68,177.64,3.26]
[1752980531837,7.5080903,177.68,177.66,3.26]
[1752980532136,1.0,177.7,177.66,3.26]
[1752980532137,1.8829903,177.7,177.66,3.26]
[1752980532333,7.5075903,177.7,177.66,3.26]
[1752980533338,1.0,177.73,177.7,3.26]
[1752980533339,5.6238,177.72,177.7,3.26]
[1752980534243,5.624,177.71,177.7,3.26]
[1752980537642,8.5069903,177.71,177.7,3.26]
[1752980538845,2.8829903,177.71,177.68,3.26]
[1752980539144,2.8829903,177.71,177.69,3.26]
[1752980539638,1.0,177.69,177.68,3.26]
[1752980540035,1.0,177.68,177.65,3.26]
[1752980540545,5.6251,177.68,177.65,3.26]
[1752980542740,1.8829903,177.69,177.66,3.19]
[1752980542934,1.8829903,177.69,177.64,103.24]
[1752980542935,2.8929903,177.69,177.68,3.19]
[1752980543743,8.5176903,177.69,177.68,3.19]
[1752980544145,7.5076903,177.69,177.68,3.19]
[1752980544844,5.6247,177.69,177.68,3.19]
[1752980545741,1.8829903,177.71,177.68,3.19]
[1752980545742,7.5072903,177.71,177.68,3.19]
[1752980546248,6.6335,177.73,177.68,3.19]
[1752980546448,2.8929903,177.73,177.68,3.19]
[1752980546841,5.6237,177.72,177.68,8.8148]
[1752980547042,1.8829903,177.73,177.69,3.19]
[1752980548250,7.5064903,177.73,177.7,3.19]
[1752980549046,7.5064903,177.73,177.71,3.19]
[1752980550643,1.8829903,177.79,177.72,3.19]
[1752980551051,5.6223,177.77,177.72,3.19]
[1752980551248,2.8929903,177.79,177.72,3.19]
[1752980551547,6.6321,177.78,177.72,8.8135]
[1752980551849,2.8929903,177.77,177.73,3.19]
[1752980552045,5.6227,177.76,177.73,3.19]
[1752980553050,1.8829903,177.77,177.73,3.19]
[1752980553352,2.8929903,177.77,177.73,3.19]
[1752980553545,6.16657885,177.8,177.71,3.19]
[1752980553747,1.8829903,177.77,177.73,3.19]
[1752980554545,5.6227,177.76,177.73,5.6233]
[1752980554747,1.8829903,177.78,177.74,3.19]
[1752980554946,2.8929903,177.8,177.74,3.19]
[1752980555142,5.6219,177.78,177.74,3.19]
[1752980555353,5.6219,177.78,177.75,3.19]
[1752980556654,1.8829903,177.81,177.76,3.19]
[1752980556858,1.01,177.8,177.76,3.19]
[1752980557353,5.6218,177.79,177.76,3.19]
[1752980558254,5.6218,177.79,177.77,3.19]
[1752980559250,5.6219,177.78,177.73,3.19]
[1752980559850,2.8929903,177.78,177.74,3.19]
[1752980560051,1.8829903,177.78,177.72,103.02]
[1752980560252,1.01,177.76,177.75,3.19]
[1752980561145,1.01,177.75,177.73,3.19]
[1752980562849,5.6231,177.74,177.73,3.19]
[1752980564853,6.6331,177.74,177.73,3.19]
[1752980565053,6.6331,177.74,177.68,3.19]
[1752980565054,1.01,177.73,177.68,3.19]
[1752980565356,1.8829903,177.7,177.68,3.19]
[1752980566248,2.8929903,177.7,177.69,3.19]
[1752980566648,8.5173903,177.7,177.69,3.19]
[1752980566856,2.8929903,177.7,177.69,3.19]
[1752980567455,1.8829903,177.71,177.69,3.19]
[1752980567656,1.8829903,177.73,177.69,3.19]
[1752980568253,1.8829903,177.75,177.69,3.19]
[1752980569058,1.8829903,177.75,177.73,3.19]
[1752980569553,1.8829903,177.77,177.73,3.19]
[1752980569762,2.8929903,177.79,177.73,3.19]
[1752980570551,5.622,177.78,177.74,5.6229]
[1752980570755,5.622,177.78,177.75,2.99]
[1752980572865,5.6215,177.8,177.75,2.99]
[1752980573069,1.8829903,177.79,177.75,2.99]
[1752980573764,2.8929903,177.79,177.75,2.99]
[1752980573965,5.6219,177.78,177.76,2.99]
[1752980574165,1.01,177.79,177.77,2.99]
[1752980574365,2.8929903,177.79,177.78,2.99]
[1752980574561,7.5045903,177.79,177.78,2.99]
[1752980575261,8.5145903,177.79,177.78,2.99]
[1752980576668,6.6319,177.78,177.74,2.99]
[1752980577158,1.8829903,177.79,177.74,2.99]
[1752980577159,5.6226,177.76,177.74,2.99]
[1752980577358,6.6326,177.76,177.72,2.99]
[1752980577563,2.8929903,177.77,177.72,2.99]
[1752980578665,1.01,177.79,177.72,2.99]
[1752980578866,1.8829903,177.78,177.72,2.99]
[1752980579066,5.6222,177.77,177.73,2.99]
[1752980579860,5.6225,177.76,177.73,2.99]
[1752980580366,5.6228,177.75,177.73,2.99]
[1752980580769,5.6231,177.74,177.73,2.99]
[1752980580968,6.6331,177.74,177.73,2.99]
[1752980581167,8.5160903,177.74,177.73,2.99]
[1752980582069,5.6235,177.73,177.71,2.99]
[1752980582364,1.8829903,177.72,177.71,2.99]
[1752980582570,2.8929903,177.72,177.71,2.99]
[1752980582768,2.8929903,177.72,177.65,2.99]
[1752980582968,2.8929903,177.69,177.65,2.99]
[1752980583162,1.8829903,177.69,177.65,2.99]
[1752980583364,1.8829903,177.69,177.65,5.6258]
[1752980583567,1.8829903,177.69,177.66,2.99]
[1752980584676,1.8829903,177.69,177.66,8.6156]
[1752980584875,1.8829903,177.69,177.67,2.99]
[1752980588185,7.5076903,177.69,177.67,2.99]
[1752980588484,1.8829903,177.69,177.67,2.99]
[1752980589880,1.01,177.7,177.67,2.99]
[1752980590081,1.8829903,177.69,177.67,2.99]
[1752980592688,5.6245,177.7,177.67,2.99]
[1752980592982,1.8829903,177.69,177.67,2.99]
[1752980593188,6.16657885,177.76,177.67,2.99]
[1752980593392,1.8829903,177.74,177.67,2.99]
[1752980593982,1.8829903,177.72,177.67,2.99]
[1752980594785,5.6235,177.73,177.69,2.99]
[1752980594980,1.8829903,177.72,177.69,2.99]
[1752980595478,1.8829903,177.74,177.66,2.99]
[1752980596186,5.6236,177.73,177.68,5.6248]
[1752980596390,5.6236,177.73,177.69,2.99]
[1752980596786,1.8829903,177.72,177.69,2.99]
[1752980596987,1.8829903,177.72,177.7,2.99]
[1752980597388,5.6231,177.74,177.7,2.99]
[1752980597591,1.8829903,177.73,177.7,2.99]
[1752980597789,5.6228,177.75,177.7,2.99]
[1752980598090,7.5057903,177.75,177.7,2.99]
[1752980598787,5.6228,177.75,177.7,2.99]
[1752980599095,7.5057903,177.75,177.72,2.99]
[1752980600494,5.6231,177.74,177.72,2.99]
[1752980601692,5.6228,177.75,177.72,2.99]
[1752980601884,1.8829903,177.74,177.72,2.99]
[1752980603094,7.5060903,177.74,177.72,2.99]
[1752980603893,2.8929903,177.74,177.73,3.27]
[1752980604396,8.5163903,177.74,177.73,3.27]
[1752980604792,1.01,177.78,177.73,3.27]
[1752980604996,1.8829903,177.75,177.73,3.27]
[1752980605196,1.8829903,177.77,177.73,3.27]
[1752980605995,1.8829903,177.78,177.73,3.27]
[1752980606598,5.6224,177.77,177.73,8.8934]
[1752980606896,5.6224,177.77,177.74,3.27]
[1752980607201,7.5049903,177.78,177.75,3.27]
[1752980607392,1.8829903,177.78,177.75,3.27]
[1752980607589,2.8929903,177.78,177.7,1.8829903]
[1752980607789,1.8829903,177.74,177.69,3.27]
[1752980608301,1.8829903,177.72,177.7,3.27]
[1752980608693,5.6236,177.73,177.7,3.27]
[1752980608999,8.5165903,177.73,177.7,3.27]
[1752980609196,7.5065903,177.73,177.7,3.27]
[1752980609797,5.6236,177.73,177.7,3.27]
[1752980610098,1.8829903,177.73,177.71,3.27]
[1752980610493,5.6232,177.74,177.71,3.27]
[1752980610689,7.5061903,177.74,177.71,3.27]
[1752980611700,5.6232,177.74,177.71,3.27]
[1752980611896,7.5061903,177.74,177.71,3.27]
[1752980612297,1.01,177.76,177.66,1.8829903]
[1752980612493,1.8829903,177.75,177.72,3.27]
[1752980613400,7.5059903,177.75,177.72,3.27]
[1752980614802,5.6231,177.74,177.72,3.27]
[1752980615000,1.01,177.76,177.72,3.27]
[1752980615304,2.8929903,177.76,177.72,3.27]
[1752980615492,6.16657885,177.81,177.73,3.27]
[1752980615493,5.6228,177.75,177.73,3.27]
[1752980615698,1.8829903,177.76,177.73,3.27]
[1752980616502,2.8929903,177.76,177.73,3.27]
[1752980617298,8.5154903,177.76,177.73,3.27]
[1752980617797,5.6228,177.75,177.73,3.27]
[1752980617998,1.8829903,177.74,177.67,3.27]
[1752980618893,1.8829903,177.76,177.67,3.27]
[1752980619702,7.5054903,177.76,177.67,3.27]
[1752980620199,7.5054903,177.76,177.72,5.6235]
[1752980620404,8.5154903,177.76,177.73,3.27]
[1752980621506,5.6228,177.75,177.71,5.6239]
[1752980621708,6.6328,177.75,177.74,3.27]
[1752980623206,5.6231,177.74,177.66,1.8829903]
[1752980623507,7.5060903,177.74,177.73,3.27]
[1752980623705,1.8829903,177.74,177.73,3.27]
[1752980624307,5.6224,177.77,177.73,5.6232]
[1752980624504,1.8829903,177.76,177.74,3.27]
[1752980625106,2.8929903,177.76,177.74,3.27]
[1752980625307,1.01,177.78,177.74,3.27]
[1752980625506,1.8829903,177.76,177.74,3.27]
[1752980625707,8.5156903,177.76,177.75,3.27]
[1752980627312,1.01,177.73,177.71,3.27]
[1752980627511,1.8829903,177.72,177.64,4.72480863]
[1752980627809,1.8829903,177.73,177.65,1.8829903]
[1752980628109,1.8829903,177.73,177.66,3.27]
[1752980628511,1.8829903,177.73,177.69,3.27]
[1752980629604,8.5165903,177.73,177.65,1.8829903]
[1752980629809,2.8929903,177.73,177.66,3.27]
[1752980630005,1.01,177.7,177.66,3.27]
[1752980630511,1.8829903,177.71,177.66,3.27]
[1752980630906,1.8829903,177.71,177.69,5.6247]
[1752980631211,1.8829903,177.71,177.7,3.3]
[1752980632711,7.5069903,177.71,177.7,3.3]
[1752980633011,8.5169903,177.71,177.7,3.3]
[1752980633515,1.8829903,177.71,177.65,3.3]
[1752980633811,1.8829903,177.68,177.65,3.3]
[1752980634012,1.8829903,177.68,177.67,3.3]
[1752980634716,1.01,177.71,177.67,8.9252]
[1752980634908,1.8829903,177.7,177.62,237.79296992]
[1752980635110,2.8929903,177.7,177.69,3.3]
[1752980635913,6.6348,177.69,177.65,3.3]
[1752980636308,1.8829903,177.68,177.65,3.3]
[1752980636817,1.8829903,177.68,177.66,5.6256]
[1752980637112,1.8829903,177.68,177.67,3.3]
[1752980639412,7.5079903,177.68,177.67,3.3]
[1752980639614,1.01,177.67,177.63,3.3]
[1752980639813,1.8829903,177.65,177.62,231.18517099]
[1752980640113,8.5191903,177.65,177.64,3.3]
[1752980640910,5.6266,177.63,177.62,127.44517099]
[1752980641115,8.5195903,177.63,177.62,127.44517099]
[1752980641318,1.8829903,177.63,177.62,127.44517099]
[1752980641516,1.8829903,177.63,177.62,130.74517099]
[1752980641716,7.5095903,177.63,177.62,130.74517099]
[1752980643108,1.8829903,177.63,177.62,130.74517099]
[1752980643617,1.8829903,177.63,177.6,3.3]
[1752980643618,1.01,177.61,177.6,3.3]
[1752980643820,2.8929903,177.61,177.6,3.3]